[Event "Titled Tuesday Blitz February 14 Late 2023"]
[White "Bernadskiy, Vitaliy"]
[Black "Rasulov, Vugar"]
[WhiteFideId "14100371"]
[BlackFideId "13402390"]
[WhiteElo "2592"]
[BlackElo "2523"]
[Result "1-0"]
[Round "04"]
[TimeControl "180+2"]
[Date "2023.02.14"]
[WhiteClock "0:00:06"]
[BlackClock "0:00:04"]

1. d4 {[%clk 0:03:00]}  Nf6 {[%clk 0:03:00]} 2. Nc3 {[%clk 0:02:58]}  e6 {[%clk 0:02:57]} 3. Bf4 {[%clk 0:02:57]}  d5 {[%clk 0:02:44]} 4. e3 {[%clk 0:02:57]}  Bd6 {[%clk 0:02:44]} 5. Nf3 {[%clk 0:02:52]}  O-O {[%clk 0:02:43]} 6. Bd3 {[%clk 0:02:49]}  c5 {[%clk 0:02:43]} 7. dxc5 {[%clk 0:02:49]}  Bxf4 {[%clk 0:02:41]} 8. exf4 {[%clk 0:02:50]}  Qc7 {[%clk 0:02:39]} 9. Qd2 {[%clk 0:02:49]}  Qxc5 {[%clk 0:02:34]} 10. O-O {[%clk 0:02:49]}  Nc6 {[%clk 0:02:34]} 11. Rfe1 {[%clk 0:02:49]}  b6 {[%clk 0:02:34]} 12. h3 {[%clk 0:02:46]}  Bb7 {[%clk 0:02:34]} 13. a3 {[%clk 0:02:43]}  Rad8 {[%clk 0:02:33]} 14. Qe2 {[%clk 0:02:36]}  Rfe8 {[%clk 0:02:26]} 15. Rad1 {[%clk 0:02:35]}  Nh5 {[%clk 0:02:20]} 16. Ng5 {[%clk 0:02:06]}  Nf6 {[%clk 0:02:13]} 17. Nf3 {[%clk 0:02:04]}  g6 {[%clk 0:02:09]} 18. Qd2 {[%clk 0:01:45]}  Rc8 {[%clk 0:01:53]} 19. f5 {[%clk 0:01:30]}  exf5 {[%clk 0:01:48]} 20. Bxf5 {[%clk 0:01:24]}  Rcd8 {[%clk 0:01:37]} 21. Qg5 {[%clk 0:01:21]}  Kg7 {[%clk 0:01:31]} 22. Bd3 {[%clk 0:01:16]}  h6 {[%clk 0:01:30]} 23. Qf4 {[%clk 0:01:12]}  Nh5 {[%clk 0:01:13]} 24. Qc7 {[%clk 0:01:11]}  Re7 {[%clk 0:01:09]} 25. Rxe7 {[%clk 0:01:09]}  Qxe7 {[%clk 0:01:10]} 26. Qxe7 {[%clk 0:01:07]}  Nxe7 {[%clk 0:01:11]} 27. Nb5 {[%clk 0:01:05]}  a6 {[%clk 0:01:07]} 28. Nbd4 {[%clk 0:01:06]}  Nf4 {[%clk 0:01:08]} 29. Re1 {[%clk 0:01:04]}  Kf6 {[%clk 0:01:04]} 30. Ne5 {[%clk 0:01:01]}  h5 {[%clk 0:01:04]} 31. Bf1 {[%clk 0:00:53]}  Rd6 {[%clk 0:00:58]} 32. h4 {[%clk 0:00:42]}  Bc8 {[%clk 0:00:49]} 33. g3 {[%clk 0:00:40]}  Ne6 {[%clk 0:00:49]} 34. Ndf3 {[%clk 0:00:37]}  b5 {[%clk 0:00:44]} 35. Bh3 {[%clk 0:00:33]}  d4 {[%clk 0:00:40]} 36. Bxe6 {[%clk 0:00:22]}  Bxe6 {[%clk 0:00:40]} 37. Ng5 {[%clk 0:00:22]}  Nf5 {[%clk 0:00:27]} 38. Nd3 {[%clk 0:00:15]}  Bd5 {[%clk 0:00:22]} 39. Nf4 {[%clk 0:00:14]}  Bb7 {[%clk 0:00:17]} 40. Re8 {[%clk 0:00:13]}  Rd7 {[%clk 0:00:15]} 41. Kf1 {[%clk 0:00:12]}  Kg7 {[%clk 0:00:15]} 42. Ke1 {[%clk 0:00:11]}  Nd6 {[%clk 0:00:15]} 43. Rb8 {[%clk 0:00:09]}  Nc4 {[%clk 0:00:15]} 44. Nd3 {[%clk 0:00:09]}  Re7+ {[%clk 0:00:15]} 45. Kd1 {[%clk 0:00:09]}  f6 {[%clk 0:00:15]} 46. Ne6+ {[%clk 0:00:06]}  Kf7 {[%clk 0:00:11]} 47. Nxd4 {[%clk 0:00:07]}  Be4 {[%clk 0:00:10]} 48. b3 {[%clk 0:00:06]}  Nxa3 {[%clk 0:00:08]} 49. Nc5 {[%clk 0:00:04]}  a5 {[%clk 0:00:06]} 50. Nxe4 {[%clk 0:00:03]}  Rxe4 {[%clk 0:00:07]} 51. Nxb5 {[%clk 0:00:04]}  Nxb5 {[%clk 0:00:02]} 52. Rxb5 {[%clk 0:00:05]}  a4 {[%clk 0:00:03]} 53. bxa4 {[%clk 0:00:04]}  Rxa4 {[%clk 0:00:04]} 54. Kd2 {[%clk 0:00:04]}  Ra1 {[%clk 0:00:04]} 55. c4 {[%clk 0:00:03]}  Ra2+ {[%clk 0:00:05]} 56. Ke3 {[%clk 0:00:04]}  Ra3+ {[%clk 0:00:05]} 57. Kd4 {[%clk 0:00:04]}  Ra2 {[%clk 0:00:06]} 58. c5 {[%clk 0:00:05]}  Rxf2 {[%clk 0:00:06]} 59. c6 {[%clk 0:00:05]}  Ke7 {[%clk 0:00:04]} 60. Rd5 {[%clk 0:00:05]}  Rc2 {[%clk 0:00:04]} 61. Rc5 {[%clk 0:00:05]}  Rxc5 {[%clk 0:00:02]} 62. Kxc5 {[%clk 0:00:05]}  g5 {[%clk 0:00:03]} 63. Kb6 {[%clk 0:00:05]}  gxh4 {[%clk 0:00:02]} 64. gxh4 {[%clk 0:00:06]}  f5 {[%clk 0:00:03]} 65. c7 {[%clk 0:00:06]}  f4 {[%clk 0:00:04]} 66. c8=Q {[%clk 0:00:06]} 1-0


[Site "https://www.chess.com"]

[Event "Titled Tuesday Blitz February 14 Late 2023"]
[White "Nakamura, Hikaru"]
[Black "Koellner, Ruben Gideon"]
[WhiteFideId "2016192"]
[BlackFideId "12993093"]
[WhiteElo "2775"]
[BlackElo "2426"]
[Result "1-0"]
[Round "04"]
[TimeControl "180+2"]
[Date "2023.02.14"]
[WhiteClock "0:01:04"]
[BlackClock "0:00:04"]

1. Nf3 {[%clk 0:03:00]}  Nf6 {[%clk 0:02:54]} 2. e3 {[%clk 0:02:52]}  d6 {[%clk 0:02:50]} 3. d4 {[%clk 0:02:51]}  Nbd7 {[%clk 0:02:50]} 4. c4 {[%clk 0:02:49]}  e5 {[%clk 0:02:50]} 5. Nc3 {[%clk 0:02:48]}  Be7 {[%clk 0:02:50]} 6. Bd3 {[%clk 0:02:47]}  O-O {[%clk 0:02:49]} 7. O-O {[%clk 0:02:46]}  Re8 {[%clk 0:02:49]} 8. Bc2 {[%clk 0:02:45]}  exd4 {[%clk 0:02:48]} 9. exd4 {[%clk 0:02:45]}  Nf8 {[%clk 0:02:48]} 10. h3 {[%clk 0:02:43]}  Ng6 {[%clk 0:02:48]} 11. d5 {[%clk 0:02:42]}  Nd7 {[%clk 0:02:38]} 12. Nd4 {[%clk 0:02:38]}  a5 {[%clk 0:02:19]} 13. Be3 {[%clk 0:02:32]}  Nc5 {[%clk 0:02:18]} 14. a3 {[%clk 0:02:27]}  Bf6 {[%clk 0:02:14]} 15. b4 {[%clk 0:02:25]}  axb4 {[%clk 0:02:00]} 16. axb4 {[%clk 0:02:26]}  Rxa1 {[%clk 0:02:00]} 17. Qxa1 {[%clk 0:02:27]}  Na6 {[%clk 0:02:00]} 18. Qa3 {[%clk 0:02:25]}  Bd7 {[%clk 0:01:49]} 19. Ne4 {[%clk 0:02:16]}  Ne5 {[%clk 0:01:27]} 20. Qb3 {[%clk 0:02:08]}  Be7 {[%clk 0:01:00]} 21. f4 {[%clk 0:02:07]}  Ng6 {[%clk 0:01:00]} 22. f5 {[%clk 0:02:07]}  Ne5 {[%clk 0:01:00]} 23. f6 {[%clk 0:02:08]}  gxf6 {[%clk 0:00:30]} 24. Ng3 {[%clk 0:01:59]}  Kh8 {[%clk 0:00:27]} 25. Ndf5 {[%clk 0:01:59]}  Rg8 {[%clk 0:00:25]} 26. Kh2 {[%clk 0:01:59]}  Bf8 {[%clk 0:00:23]} 27. Bd2 {[%clk 0:01:53]}  c6 {[%clk 0:00:14]} 28. dxc6 {[%clk 0:01:52]}  Bxc6 {[%clk 0:00:15]} 29. Be4 {[%clk 0:01:42]}  Qb6 {[%clk 0:00:08]} 30. Bc3 {[%clk 0:01:07]}  Nc5 {[%clk 0:00:06]} 31. Qc2 {[%clk 0:01:06]}  Nxe4 {[%clk 0:00:07]} 32. Nxe4 {[%clk 0:01:07]}  Nxc4 {[%clk 0:00:05]} 33. Bxf6+ {[%clk 0:01:05]}  Bg7 {[%clk 0:00:03]} 34. Nxg7 {[%clk 0:01:05]}  Rxg7 {[%clk 0:00:04]} 35. Qxc4 {[%clk 0:01:04]} 1-0


[Site "https://www.chess.com"]

[Event "Titled Tuesday Blitz February 14 Late 2023"]
[White "Kollars, Dmitrij"]
[Black "Marosi, Levente"]
[WhiteFideId "12909572"]
[BlackFideId "747181"]
[WhiteElo "2607"]
[BlackElo "2303"]
[Result "1-0"]
[Round "04"]
[TimeControl "180+2"]
[Date "2023.02.14"]
[WhiteClock "0:01:30"]
[BlackClock "0:00:46"]

1. Nf3 {[%clk 0:03:00]}  d6 {[%clk 0:02:20]} 2. e4 {[%clk 0:02:56]}  c5 {[%clk 0:02:18]} 3. Bb5+ {[%clk 0:02:54]}  Bd7 {[%clk 0:02:12]} 4. Bxd7+ {[%clk 0:02:54]}  Qxd7 {[%clk 0:02:12]} 5. c4 {[%clk 0:02:54]}  Nc6 {[%clk 0:02:10]} 6. Nc3 {[%clk 0:02:55]}  g6 {[%clk 0:02:09]} 7. d4 {[%clk 0:02:54]}  cxd4 {[%clk 0:02:05]} 8. Nxd4 {[%clk 0:02:54]}  Bg7 {[%clk 0:02:06]} 9. Be3 {[%clk 0:02:55]}  Nf6 {[%clk 0:02:04]} 10. h3 {[%clk 0:02:52]}  O-O {[%clk 0:02:04]} 11. O-O {[%clk 0:02:52]}  Rfd8 {[%clk 0:02:00]} 12. Qd3 {[%clk 0:02:50]}  e6 {[%clk 0:01:58]} 13. Rad1 {[%clk 0:02:46]}  Rac8 {[%clk 0:01:58]} 14. b3 {[%clk 0:02:46]}  a6 {[%clk 0:01:56]} 15. Nxc6 {[%clk 0:02:43]}  Rxc6 {[%clk 0:01:55]} 16. f4 {[%clk 0:02:41]}  Qc7 {[%clk 0:01:40]} 17. f5 {[%clk 0:02:29]}  b5 {[%clk 0:01:33]} 18. fxe6 {[%clk 0:02:20]}  fxe6 {[%clk 0:01:34]} 19. c5 {[%clk 0:02:15]}  Rxc5 {[%clk 0:01:29]} 20. Bxc5 {[%clk 0:02:11]}  Qxc5+ {[%clk 0:01:30]} 21. Kh1 {[%clk 0:02:12]}  Nh5 {[%clk 0:01:30]} 22. Ne2 {[%clk 0:02:11]}  Be5 {[%clk 0:01:29]} 23. Rc1 {[%clk 0:02:10]}  Qb6 {[%clk 0:01:27]} 24. Qf3 {[%clk 0:02:08]}  Qa7 {[%clk 0:01:22]} 25. g4 {[%clk 0:02:06]}  Nf6 {[%clk 0:01:19]} 26. Nf4 {[%clk 0:02:02]}  Qe7 {[%clk 0:01:08]} 27. Nd3 {[%clk 0:02:02]}  Bd4 {[%clk 0:01:08]} 28. e5 {[%clk 0:02:01]}  Nd5 {[%clk 0:01:06]} 29. exd6 {[%clk 0:01:58]}  Qxd6 {[%clk 0:01:04]} 30. Qf7+ {[%clk 0:01:45]}  Kh8 {[%clk 0:00:56]} 31. Nf4 {[%clk 0:01:46]}  Ne3 {[%clk 0:00:46]} 32. Rc7 {[%clk 0:01:30]} 1-0


[Site "https://www.chess.com"]

[Event "Titled Tuesday Blitz February 14 Late 2023"]
[White "Chigaev, Maksim"]
[Black "Saveliev, Alexei"]
[WhiteFideId "4108116"]
[BlackFideId "24128546"]
[WhiteElo "2628"]
[BlackElo "2385"]
[Result "1-0"]
[Round "04"]
[TimeControl "180+2"]
[Date "2023.02.14"]
[WhiteClock "0:00:02"]
[BlackClock "0:00:02"]

1. e4 {[%clk 0:03:00]}  c5 {[%clk 0:02:48]} 2. Nf3 {[%clk 0:03:00]}  Nc6 {[%clk 0:02:47]} 3. Bb5 {[%clk 0:03:01]}  g6 {[%clk 0:02:47]} 4. O-O {[%clk 0:03:01]}  Bg7 {[%clk 0:02:47]} 5. c3 {[%clk 0:03:01]}  Nf6 {[%clk 0:02:45]} 6. Re1 {[%clk 0:03:01]}  O-O {[%clk 0:02:44]} 7. h3 {[%clk 0:03:02]}  a6 {[%clk 0:02:36]} 8. Bxc6 {[%clk 0:02:57]}  bxc6 {[%clk 0:02:27]} 9. d4 {[%clk 0:02:58]}  cxd4 {[%clk 0:02:27]} 10. cxd4 {[%clk 0:02:59]}  d5 {[%clk 0:02:26]} 11. e5 {[%clk 0:02:56]}  Ne4 {[%clk 0:02:26]} 12. Nc3 {[%clk 0:02:55]}  Bf5 {[%clk 0:02:17]} 13. Nh4 {[%clk 0:02:40]}  Nxc3 {[%clk 0:02:04]} 14. bxc3 {[%clk 0:02:40]}  Qa5 {[%clk 0:02:04]} 15. Nxf5 {[%clk 0:02:18]}  gxf5 {[%clk 0:02:05]} 16. Qf3 {[%clk 0:02:18]}  e6 {[%clk 0:01:50]} 17. Bg5 {[%clk 0:02:16]}  h6 {[%clk 0:01:42]} 18. Be7 {[%clk 0:02:06]}  Rfe8 {[%clk 0:01:38]} 19. Bd6 {[%clk 0:02:06]}  Kh7 {[%clk 0:01:27]} 20. a4 {[%clk 0:01:55]}  Ra7 {[%clk 0:01:26]} 21. Reb1 {[%clk 0:01:54]}  Bf8 {[%clk 0:01:18]} 22. Bb4 {[%clk 0:01:06]}  Qc7 {[%clk 0:01:11]} 23. Bxf8 {[%clk 0:00:41]}  Rxf8 {[%clk 0:01:12]} 24. Kh2 {[%clk 0:00:40]}  Rb7 {[%clk 0:00:59]} 25. Rxb7 {[%clk 0:00:31]}  Qxb7 {[%clk 0:01:00]} 26. g4 {[%clk 0:00:31]}  fxg4 {[%clk 0:00:52]} 27. hxg4 {[%clk 0:00:31]}  Qe7 {[%clk 0:00:52]} 28. Kg2 {[%clk 0:00:21]}  Rg8 {[%clk 0:00:45]} 29. Rh1 {[%clk 0:00:17]}  Rg6 {[%clk 0:00:36]} 30. Qf4 {[%clk 0:00:09]}  a5 {[%clk 0:00:32]} 31. Rh3 {[%clk 0:00:09]}  Kg7 {[%clk 0:00:32]} 32. Kh2 {[%clk 0:00:09]}  Qa3 {[%clk 0:00:23]} 33. Rf3 {[%clk 0:00:08]}  Qe7 {[%clk 0:00:21]} 34. Kh3 {[%clk 0:00:07]}  Kg8 {[%clk 0:00:15]} 35. Rg3 {[%clk 0:00:07]}  Kg7 {[%clk 0:00:12]} 36. Qe3 {[%clk 0:00:07]}  Kh7 {[%clk 0:00:08]} 37. f4 {[%clk 0:00:08]}  Rg7 {[%clk 0:00:07]} 38. f5 {[%clk 0:00:06]}  Qg5 {[%clk 0:00:06]} 39. Qxg5 {[%clk 0:00:05]}  hxg5 {[%clk 0:00:07]} 40. Rf3 {[%clk 0:00:05]}  exf5 {[%clk 0:00:04]} 41. Rxf5 {[%clk 0:00:05]}  Kg8 {[%clk 0:00:04]} 42. Kg3 {[%clk 0:00:05]}  Rg6 {[%clk 0:00:04]} 43. Kf3 {[%clk 0:00:06]}  Kf8 {[%clk 0:00:05]} 44. Ke3 {[%clk 0:00:06]}  Ke7 {[%clk 0:00:06]} 45. Kd3 {[%clk 0:00:07]}  Ke6 {[%clk 0:00:04]} 46. c4 {[%clk 0:00:07]}  Ke7 {[%clk 0:00:04]} 47. c5 {[%clk 0:00:06]}  Ke6 {[%clk 0:00:04]} 48. Ke3 {[%clk 0:00:04]}  Ke7 {[%clk 0:00:04]} 49. Rf1 {[%clk 0:00:05]}  Rh6 {[%clk 0:00:04]} 50. Rb1 {[%clk 0:00:03]}  Rh3+ {[%clk 0:00:03]} 51. Ke2 {[%clk 0:00:04]}  Ra3 {[%clk 0:00:03]} 52. Rb7+ {[%clk 0:00:03]}  Ke6 {[%clk 0:00:03]} 53. Rc7 {[%clk 0:00:04]}  Rxa4 {[%clk 0:00:04]} 54. Rxc6+ {[%clk 0:00:04]}  Ke7 {[%clk 0:00:04]} 55. Kd3 {[%clk 0:00:04]}  Ra3+ {[%clk 0:00:05]} 56. Kc2 {[%clk 0:00:04]}  Rg3 {[%clk 0:00:04]} 57. Rd6 {[%clk 0:00:03]}  Rxg4 {[%clk 0:00:03]} 58. Rxd5 {[%clk 0:00:04]}  Rg2+ {[%clk 0:00:03]} 59. Kc3 {[%clk 0:00:04]}  g4 {[%clk 0:00:04]} 60. c6 {[%clk 0:00:05]}  Rg1 {[%clk 0:00:04]} 61. Kc2 {[%clk 0:00:04]}  Rg2+ {[%clk 0:00:04]} 62. Kb3 {[%clk 0:00:04]}  a4+ {[%clk 0:00:02]} 63. Kxa4 {[%clk 0:00:02]}  Rc2 {[%clk 0:00:02]} 64. Kb5 {[%clk 0:00:02]}  g3 {[%clk 0:00:02]} 65. Rd7+ {[%clk 0:00:02]} 1-0


[Site "https://www.chess.com"]

[Event "Titled Tuesday Blitz February 14 Late 2023"]
[White "Makarian, Rudik"]
[Black "Popilski, Gil"]
[WhiteFideId "44105681"]
[BlackFideId "2809060"]
[WhiteElo "2545"]
[BlackElo "2443"]
[Result "1-0"]
[Round "04"]
[TimeControl "180+2"]
[Date "2023.02.14"]
[WhiteClock "0:00:09"]
[BlackClock "0:00:10"]

1. d4 {[%clk 0:03:00]}  Nf6 {[%clk 0:02:59]} 2. c4 {[%clk 0:02:59]}  e6 {[%clk 0:02:59]} 3. Nf3 {[%clk 0:02:59]}  Bb4+ {[%clk 0:02:58]} 4. Bd2 {[%clk 0:02:59]}  Qe7 {[%clk 0:02:58]} 5. g3 {[%clk 0:02:59]}  Nc6 {[%clk 0:02:57]} 6. b3 {[%clk 0:02:54]}  d5 {[%clk 0:02:53]} 7. Bg2 {[%clk 0:02:54]}  O-O {[%clk 0:02:52]} 8. O-O {[%clk 0:02:55]}  Bxd2 {[%clk 0:02:48]} 9. Qxd2 {[%clk 0:02:56]}  Rd8 {[%clk 0:02:48]} 10. Qc3 {[%clk 0:02:56]}  Ne4 {[%clk 0:02:47]} 11. Qe3 {[%clk 0:02:49]}  Nd6 {[%clk 0:02:41]} 12. cxd5 {[%clk 0:02:43]}  exd5 {[%clk 0:02:25]} 13. Qxe7 {[%clk 0:02:44]}  Nxe7 {[%clk 0:02:25]} 14. Nc3 {[%clk 0:02:44]}  c6 {[%clk 0:02:23]} 15. e3 {[%clk 0:02:42]}  a5 {[%clk 0:02:22]} 16. Rfc1 {[%clk 0:02:39]}  Bf5 {[%clk 0:02:21]} 17. Na4 {[%clk 0:02:38]}  f6 {[%clk 0:02:20]} 18. h4 {[%clk 0:02:33]}  Be4 {[%clk 0:02:16]} 19. Nd2 {[%clk 0:02:32]}  Bxg2 {[%clk 0:02:15]} 20. Kxg2 {[%clk 0:02:33]}  Kf7 {[%clk 0:02:15]} 21. Nc5 {[%clk 0:02:33]}  b6 {[%clk 0:02:11]} 22. Nd3 {[%clk 0:02:32]}  Rac8 {[%clk 0:02:09]} 23. Rc2 {[%clk 0:02:31]}  Rc7 {[%clk 0:02:05]} 24. Rac1 {[%clk 0:02:31]}  Rdc8 {[%clk 0:02:05]} 25. Nf4 {[%clk 0:02:30]}  c5 {[%clk 0:01:58]} 26. dxc5 {[%clk 0:02:30]}  bxc5 {[%clk 0:01:54]} 27. Nb1 {[%clk 0:02:28]}  c4 {[%clk 0:01:43]} 28. Rd1 {[%clk 0:02:21]}  cxb3 {[%clk 0:01:37]} 29. Rxc7 {[%clk 0:02:21]}  Rxc7 {[%clk 0:01:24]} 30. axb3 {[%clk 0:02:20]}  Rb7 {[%clk 0:01:22]} 31. Nc3 {[%clk 0:02:15]}  Rxb3 {[%clk 0:01:20]} 32. Ncxd5 {[%clk 0:02:16]}  a4 {[%clk 0:01:16]} 33. Rd4 {[%clk 0:02:12]}  Nxd5 {[%clk 0:01:10]} 34. Nxd5 {[%clk 0:02:10]}  Rb5 {[%clk 0:01:09]} 35. Nc3 {[%clk 0:02:06]}  Rb6 {[%clk 0:01:07]} 36. Rxa4 {[%clk 0:02:05]}  Rc6 {[%clk 0:01:05]} 37. Ra7+ {[%clk 0:02:04]}  Kg6 {[%clk 0:00:59]} 38. Nd5 {[%clk 0:02:04]}  Rc2 {[%clk 0:00:59]} 39. Kf3 {[%clk 0:01:52]}  Kh6 {[%clk 0:00:54]} 40. Ra4 {[%clk 0:01:48]}  Nc4 {[%clk 0:00:53]} 41. Kg2 {[%clk 0:01:38]}  Ne5 {[%clk 0:00:47]} 42. Rd4 {[%clk 0:01:33]}  Kg6 {[%clk 0:00:42]} 43. Ne7+ {[%clk 0:01:31]}  Kf7 {[%clk 0:00:41]} 44. Nf5 {[%clk 0:01:31]}  Kg6 {[%clk 0:00:41]} 45. Nd6 {[%clk 0:01:09]}  h5 {[%clk 0:00:41]} 46. Ne4 {[%clk 0:01:05]}  Ng4 {[%clk 0:00:39]} 47. Rd2 {[%clk 0:01:04]}  Rc4 {[%clk 0:00:39]} 48. Nd6 {[%clk 0:01:01]}  Ra4 {[%clk 0:00:38]} 49. Nb5 {[%clk 0:00:59]}  Rb4 {[%clk 0:00:36]} 50. Nc7 {[%clk 0:00:59]}  Ra4 {[%clk 0:00:36]} 51. Ne6 {[%clk 0:00:58]}  Kh6 {[%clk 0:00:33]} 52. Nf4 {[%clk 0:00:56]}  Ra8 {[%clk 0:00:30]} 53. Rd5 {[%clk 0:00:54]}  g6 {[%clk 0:00:30]} 54. Rd2 {[%clk 0:00:49]}  Ra7 {[%clk 0:00:29]} 55. Rc2 {[%clk 0:00:48]}  Ra8 {[%clk 0:00:28]} 56. Nd5 {[%clk 0:00:44]}  Ra5 {[%clk 0:00:27]} 57. Ne7 {[%clk 0:00:34]}  Ra7 {[%clk 0:00:26]} 58. Nc8 {[%clk 0:00:30]}  Ra3 {[%clk 0:00:25]} 59. Rd2 {[%clk 0:00:24]}  Rc3 {[%clk 0:00:24]} 60. Nd6 {[%clk 0:00:21]}  Kg7 {[%clk 0:00:24]} 61. Nb5 {[%clk 0:00:21]}  Rb3 {[%clk 0:00:23]} 62. Nd4 {[%clk 0:00:20]}  Rb6 {[%clk 0:00:24]} 63. Nf3 {[%clk 0:00:18]}  Kh6 {[%clk 0:00:23]} 64. Re2 {[%clk 0:00:18]}  Rb3 {[%clk 0:00:23]} 65. Nd4 {[%clk 0:00:17]}  Rd3 {[%clk 0:00:23]} 66. Nc6 {[%clk 0:00:15]}  Rc3 {[%clk 0:00:23]} 67. Ne7 {[%clk 0:00:13]}  Rd3 {[%clk 0:00:23]} 68. Nc6 {[%clk 0:00:11]}  Rd6 {[%clk 0:00:23]} 69. Nd4 {[%clk 0:00:11]}  Ra6 {[%clk 0:00:24]} 70. f3 {[%clk 0:00:09]}  Ne5 {[%clk 0:00:24]} 71. Kf2 {[%clk 0:00:07]}  Nd3+ {[%clk 0:00:22]} 72. Kg2 {[%clk 0:00:07]}  Ra1 {[%clk 0:00:23]} 73. Rd2 {[%clk 0:00:06]}  Ne5 {[%clk 0:00:22]} 74. Rc2 {[%clk 0:00:05]}  Ra3 {[%clk 0:00:21]} 75. Kf2 {[%clk 0:00:04]}  Nd3+ {[%clk 0:00:21]} 76. Ke2 {[%clk 0:00:05]}  Ne5 {[%clk 0:00:21]} 77. Kf2 {[%clk 0:00:03]}  Nd3+ {[%clk 0:00:21]} 78. Ke2 {[%clk 0:00:04]}  Ne5 {[%clk 0:00:22]} 79. Nb5 {[%clk 0:00:04]}  Rb3 {[%clk 0:00:21]} 80. Nc3 {[%clk 0:00:05]}  Rb7 {[%clk 0:00:19]} 81. Nd5 {[%clk 0:00:05]}  Rb3 {[%clk 0:00:19]} 82. Nxf6 {[%clk 0:00:05]}  Rb1 {[%clk 0:00:18]} 83. Kf2 {[%clk 0:00:05]}  Nd3+ {[%clk 0:00:17]} 84. Ke2 {[%clk 0:00:05]}  Ne5 {[%clk 0:00:16]} 85. Rc7 {[%clk 0:00:05]}  Rb2+ {[%clk 0:00:16]} 86. Kd1 {[%clk 0:00:06]}  g5 {[%clk 0:00:16]} 87. hxg5+ {[%clk 0:00:03]}  Kxg5 {[%clk 0:00:17]} 88. Ne4+ {[%clk 0:00:04]}  Kg6 {[%clk 0:00:16]} 89. Nd2 {[%clk 0:00:04]}  Ra2 {[%clk 0:00:16]} 90. Rc5 {[%clk 0:00:04]}  Kf6 {[%clk 0:00:15]} 91. Rb5 {[%clk 0:00:04]}  Ra1+ {[%clk 0:00:14]} 92. Kc2 {[%clk 0:00:04]}  Ra2+ {[%clk 0:00:15]} 93. Kc3 {[%clk 0:00:04]}  Ra3+ {[%clk 0:00:14]} 94. Rb3 {[%clk 0:00:04]}  Ra2 {[%clk 0:00:15]} 95. Rb6+ {[%clk 0:00:04]}  Kf5 {[%clk 0:00:15]} 96. e4+ {[%clk 0:00:04]}  Kg5 {[%clk 0:00:15]} 97. f4+ {[%clk 0:00:05]}  Kg4 {[%clk 0:00:15]} 98. fxe5 {[%clk 0:00:05]}  Kxg3 {[%clk 0:00:15]} 99. e6 {[%clk 0:00:06]}  Ra7 {[%clk 0:00:15]} 100. Rd6 {[%clk 0:00:05]}  Re7 {[%clk 0:00:15]} 101. Kd4 {[%clk 0:00:05]}  h4 {[%clk 0:00:15]} 102. Nc4 {[%clk 0:00:03]}  Kf4 {[%clk 0:00:15]} 103. Kd5 {[%clk 0:00:03]}  h3 {[%clk 0:00:14]} 104. Ra6 {[%clk 0:00:02]}  h2 {[%clk 0:00:12]} 105. Ra1 {[%clk 0:00:03]}  Rh7 {[%clk 0:00:12]} 106. Kd6 {[%clk 0:00:03]}  h1=Q {[%clk 0:00:11]} 107. Rxh1 {[%clk 0:00:04]}  Rxh1 {[%clk 0:00:12]} 108. e7 {[%clk 0:00:04]}  Rh8 {[%clk 0:00:11]} 109. e5 {[%clk 0:00:05]}  Kf5 {[%clk 0:00:11]} 110. Kd7 {[%clk 0:00:05]}  Rh7 {[%clk 0:00:10]} 111. Kd8 {[%clk 0:00:05]}  Rh8+ {[%clk 0:00:09]} 112. e8=Q {[%clk 0:00:06]}  Rxe8+ {[%clk 0:00:10]} 113. Kxe8 {[%clk 0:00:06]}  Ke6 {[%clk 0:00:11]} 114. Kf8 {[%clk 0:00:07]}  Kd5 {[%clk 0:00:11]} 115. Kf7 {[%clk 0:00:08]}  Kxc4 {[%clk 0:00:10]} 116. e6 {[%clk 0:00:09]} 1-0


[Site "https://www.chess.com"]

[Event "Titled Tuesday Blitz February 14 Late 2023"]
[White "Urazayev, Arystanbek"]
[Black "Klose, Eli"]
[WhiteFideId "13709810"]
[BlackFideId "16242955"]
[WhiteElo "2460"]
[BlackElo "1519"]
[Result "1-0"]
[Round "04"]
[TimeControl "180+2"]
[Date "2023.02.14"]
[WhiteClock "0:00:26"]
[BlackClock "0:00:04"]

1. e4 {[%clk 0:02:55]}  e6 {[%clk 0:02:53]} 2. d4 {[%clk 0:02:53]}  d5 {[%clk 0:02:54]} 3. e5 {[%clk 0:02:53]}  c5 {[%clk 0:02:51]} 4. c3 {[%clk 0:02:53]}  Nc6 {[%clk 0:02:50]} 5. Nf3 {[%clk 0:02:53]}  Qb6 {[%clk 0:02:50]} 6. a3 {[%clk 0:02:53]}  f6 {[%clk 0:02:49]} 7. Bd3 {[%clk 0:02:52]}  fxe5 {[%clk 0:02:45]} 8. Nxe5 {[%clk 0:02:50]}  Nxe5 {[%clk 0:02:45]} 9. dxe5 {[%clk 0:02:50]}  g6 {[%clk 0:02:41]} 10. O-O {[%clk 0:02:49]}  c4 {[%clk 0:02:36]} 11. Bc2 {[%clk 0:02:49]}  Bg7 {[%clk 0:02:34]} 12. Nd2 {[%clk 0:02:43]}  Bxe5 {[%clk 0:02:00]} 13. Nf3 {[%clk 0:02:41]}  Bg7 {[%clk 0:02:00]} 14. Ba4+ {[%clk 0:02:41]}  Bd7 {[%clk 0:01:57]} 15. Re1 {[%clk 0:02:38]}  O-O-O {[%clk 0:01:34]} 16. Bxd7+ {[%clk 0:02:38]}  Rxd7 {[%clk 0:01:33]} 17. Be3 {[%clk 0:02:39]}  Qa6 {[%clk 0:01:08]} 18. Bd4 {[%clk 0:02:39]}  Nh6 {[%clk 0:00:55]} 19. Bxg7 {[%clk 0:02:24]}  Rxg7 {[%clk 0:00:52]} 20. Qd4 {[%clk 0:02:24]}  Nf5 {[%clk 0:00:52]} 21. Qc5+ {[%clk 0:02:23]}  Kb8 {[%clk 0:00:48]} 22. Ng5 {[%clk 0:02:11]}  Re8 {[%clk 0:00:43]} 23. g4 {[%clk 0:01:46]}  Rc7 {[%clk 0:00:42]} 24. Qb4 {[%clk 0:01:30]}  Nh4 {[%clk 0:00:42]} 25. Re3 {[%clk 0:01:07]}  h6 {[%clk 0:00:41]} 26. Nf3 {[%clk 0:01:08]}  Nxf3+ {[%clk 0:00:22]} 27. Rxf3 {[%clk 0:01:08]}  Qb6 {[%clk 0:00:17]} 28. Rf6 {[%clk 0:00:58]}  Qxb4 {[%clk 0:00:16]} 29. axb4 {[%clk 0:00:59]}  Rg7 {[%clk 0:00:16]} 30. Re1 {[%clk 0:00:57]}  e5 {[%clk 0:00:09]} 31. Rd6 {[%clk 0:00:58]}  Rf7 {[%clk 0:00:05]} 32. Rxd5 {[%clk 0:00:57]}  Rf4 {[%clk 0:00:06]} 33. h3 {[%clk 0:00:57]}  e4 {[%clk 0:00:06]} 34. Rd6 {[%clk 0:00:50]}  h5 {[%clk 0:00:05]} 35. Rxg6 {[%clk 0:00:49]}  hxg4 {[%clk 0:00:05]} 36. Rxg4 {[%clk 0:00:50]}  Ref8 {[%clk 0:00:04]} 37. Rxf4 {[%clk 0:00:39]}  Rxf4 {[%clk 0:00:05]} 38. Kg2 {[%clk 0:00:40]}  Kc7 {[%clk 0:00:06]} 39. Rd1 {[%clk 0:00:36]}  b5 {[%clk 0:00:05]} 40. Rd5 {[%clk 0:00:30]}  Kc6 {[%clk 0:00:05]} 41. Rc5+ {[%clk 0:00:30]}  Kb6 {[%clk 0:00:05]} 42. Rg5 {[%clk 0:00:30]}  Rf6 {[%clk 0:00:04]} 43. Re5 {[%clk 0:00:28]}  Rf4 {[%clk 0:00:04]} 44. Re6+ {[%clk 0:00:27]}  Kb7 {[%clk 0:00:04]} 45. Rg6 {[%clk 0:00:26]}  Kc7 {[%clk 0:00:04]} 46. Rg4 {[%clk 0:00:25]}  Rf3 {[%clk 0:00:05]} 47. Rxe4 {[%clk 0:00:24]}  Rd3 {[%clk 0:00:05]} 48. Re2 {[%clk 0:00:24]}  Kb6 {[%clk 0:00:06]} 49. f3 {[%clk 0:00:24]}  a5 {[%clk 0:00:07]} 50. bxa5+ {[%clk 0:00:24]}  Kxa5 {[%clk 0:00:07]} 51. h4 {[%clk 0:00:25]}  Ka4 {[%clk 0:00:07]} 52. Kg3 {[%clk 0:00:25]}  Kb3 {[%clk 0:00:07]} 53. h5 {[%clk 0:00:25]}  Rd1 {[%clk 0:00:04]} 54. Rh2 {[%clk 0:00:25]}  Rg1+ {[%clk 0:00:02]} 55. Kf4 {[%clk 0:00:25]}  Rg7 {[%clk 0:00:01]} 56. h6 {[%clk 0:00:25]}  Rh7 {[%clk 0:00:02]} 57. Kg5 {[%clk 0:00:25]}  b4 {[%clk 0:00:03]} 58. cxb4 {[%clk 0:00:26]}  Kxb4 {[%clk 0:00:02]} 59. Kg6 {[%clk 0:00:26]}  Rh8 {[%clk 0:00:03]} 60. h7 {[%clk 0:00:26]}  Re8 {[%clk 0:00:03]} 61. f4 {[%clk 0:00:26]}  Re2 {[%clk 0:00:04]} 62. Rxe2 {[%clk 0:00:26]} 1-0


[Site "https://www.chess.com"]